bitfinex/quotes_BTCUSD_20250617
["timestamp","ask_amount","ask_price","bid_price","bid_amount"]
[1750200719115,0.55374997,104770.0,104760.0,0.29762321]
[1750200719337,0.55374997,104770.0,104760.0,0.30716883]
[1750200720301,0.55374997,104770.0,104760.0,0.31671436]
[1750200720968,0.55374997,104770.0,104760.0,0.10671065]
[1750200721192,0.74614095,104770.0,104760.0,0.10671065]
[1750200721668,0.75507584,104770.0,104760.0,0.10671065]
[1750200721888,0.65892662,104770.0,104760.0,0.29762321]
[1750200722833,0.65892662,104770.0,104760.0,0.10671065]
[1750200723808,0.67679554,104770.0,104760.0,9.065e-05]
[1750200724040,1.09069554,104770.0,104760.0,9.065e-05]
[1750200724279,1.12684507,104770.0,104760.0,9.065e-05]
[1750200724734,1.12684443,104770.0,104760.0,9.065e-05]
[1750200724960,1.12684401,104770.0,104760.0,9.065e-05]
[1750200725672,1.126844,104770.0,104760.0,9.065e-05]
[1750200726530,1.09069447,104770.0,104760.0,9.065e-05]
[1750200726756,1.05899447,104770.0,104760.0,9.065e-05]
[1750200726938,0.83360807,104770.0,104760.0,9.065e-05]
[1750200727172,1.0245024,104770.0,104760.0,9.065e-05]
[1750200727576,1.02449801,104770.0,104760.0,9.065e-05]
[1750200728029,1.024498,104770.0,104760.0,9.065e-05]
[1750200728460,1.03119698,104770.0,104760.0,9.065e-05]
[1750200729538,1.1580462,104770.0,104760.0,9.065e-05]
[1750200730446,1.30804585,104770.0,104760.0,9.065e-05]
[1750200730895,1.30134722,104770.0,104760.0,9.065e-05]
[1750200731119,1.30804668,104770.0,104760.0,9.065e-05]
[1750200732507,0.21002321,104750.0,104740.0,0.10332]
[1750200732744,0.70654321,104750.0,104740.0,0.10332]
[1750200732956,0.72939885,104750.0,104740.0,0.10332]
[1750200733193,0.82554807,104750.0,104740.0,0.10332]
[1750200733408,1.12178983,104750.0,104740.0,0.04072]
[1750200734292,1.02564061,104750.0,104740.0,0.04072]
[1750200734714,1.03457296,104750.0,104740.0,0.04072]
[1750200735413,1.02564061,104750.0,104740.0,0.04072]
[1750200735836,1.02564061,104750.0,104740.0,0.07322]
[1750200736024,1.02564061,104750.0,104740.0,0.10372]
[1750200736506,1.03457303,104750.0,104740.0,0.10372]
[1750200737166,1.02564061,104750.0,104740.0,0.10372]
[1750200738465,1.03457577,104750.0,104740.0,0.10372]
[1750200739580,1.02564061,104750.0,104740.0,0.10372]
[1750200740250,1.12178983,104750.0,104740.0,0.07322]
[1750200741395,1.02564061,104750.0,104740.0,0.10642]
[1750200741627,1.02568061,104750.0,104740.0,0.0657]
[1750200744270,1.03462532,104750.0,104740.0,0.0657]
[1750200744489,0.54049627,104740.0,104730.0,0.10476]
[1750200744724,0.71988419,104740.0,104730.0,0.10476]
[1750200744951,0.81603341,104740.0,104730.0,0.10476]
[1750200745848,1.21612595,104740.0,104730.0,0.064]
[1750200746077,0.54051542,104730.0,104720.0,0.62514]
[1750200746286,0.56338334,104730.0,104720.0,0.62514]
[1750200746509,0.59197059,104730.0,104720.0,0.62514]
[1750200747399,0.59201802,104730.0,104720.0,0.62514]
[1750200747616,0.59201802,104730.0,104720.0,0.62714]
[1750200747837,0.62069334,104730.0,104720.0,0.62714]
[1750200748060,0.62069334,104730.0,104720.0,0.62914]
[1750200748682,0.62069334,104730.0,104720.0,0.33804]
[1750200749881,0.62069334,104730.0,104720.0,0.29732]
[1750200750104,0.62069334,104730.0,104720.0,0.33804]
[1750200750592,0.62069334,104730.0,104720.0,0.52902548]
[1750200750826,0.63024142,104730.0,104720.0,0.53857466]
[1750200751041,0.63024142,104730.0,104720.0,0.63476388]
[1750200751512,0.63024142,104730.0,104720.0,0.52906548]
[1750200751730,0.62069334,104730.0,104720.0,0.33808]
[1750200752365,0.62069334,104730.0,104720.0,0.52906548]
[1750200753023,0.62069334,104730.0,104720.0,0.53861475]
[1750200753245,0.62069306,104730.0,104720.0,0.55771283]
[1750200753461,0.44882163,104730.0,104720.0,0.66341068]
[1750200753682,0.4583699,104730.0,104720.0,0.66341068]
[1750200753901,0.44882163,104730.0,104720.0,0.66341068]
[1750200754115,0.44882163,104730.0,104720.0,0.56726146]
[1750200754336,0.43927345,104730.0,104720.0,0.56726146]
[1750200754593,0.42972564,104730.0,104720.0,0.56726146]
[1750200754811,0.41640562,104730.0,104720.0,0.85836146]
[1750200755028,0.40685772,104730.0,104720.0,0.95451068]
[1750200755229,0.43928185,104730.0,104720.0,0.95451068]
[1750200755454,0.40105872,104730.0,104720.0,0.95451068]
[1750200755672,0.06105872,104730.0,104720.0,0.95451068]
[1750200755929,0.00959515,104730.0,104720.0,0.66341068]
[1750200756169,0.02869113,104730.0,104720.0,0.66341068]
[1750200756400,0.01914305,104730.0,104720.0,0.66341068]
[1750200756869,0.05346287,104730.0,104720.0,0.66341068]
[1750200757297,0.04391479,104730.0,104720.0,0.66341068]
[1750200758206,0.03436689,104730.0,104720.0,0.66341068]
[1750200758450,0.04391479,104730.0,104720.0,0.66341068]
[1750200758670,0.02481917,104730.0,104720.0,0.66341068]
[1750200758894,4.743e-05,104730.0,104720.0,0.66341068]
[1750200759334,4.743e-05,104730.0,104720.0,0.77419329]
[1750200759557,0.00959497,104730.0,104720.0,0.77419329]
[1750200760213,0.0191426,104730.0,104720.0,0.77419329]
[1750200760430,0.0191426,104730.0,104720.0,0.67804407]
[1750200760647,0.00959497,104730.0,104720.0,0.67804407]
[1750200762229,0.0191426,104730.0,104720.0,0.67804407]
[1750200763729,0.02869041,104730.0,104720.0,0.67804407]
[1750200764610,0.04778658,104730.0,104720.0,0.58180231]
[1750200765302,0.04778658,104730.0,104720.0,0.35248231]
[1750200766833,0.0382384,104730.0,104720.0,0.35248231]
[1750200767044,0.04778658,104730.0,104720.0,0.35248231]
[1750200767904,0.04778648,104730.0,104720.0,0.35248231]
[1750200768127,0.04778712,104730.0,104720.0,0.35248231]
[1750200768345,0.03823894,104730.0,104720.0,0.29718146]
[1750200768569,0.11127121,104730.0,104720.0,0.49446146]
[1750200769464,0.11127121,104730.0,104720.0,0.78556146]
[1750200770208,0.04778712,104730.0,104720.0,0.78556146]
[1750200772392,0.01914287,104730.0,104720.0,0.78556146]
[1750200772609,0.02869086,104730.0,104720.0,0.78556146]
[1750200773265,0.02869077,104730.0,104720.0,0.78556146]
[1750200773947,4.743e-05,104730.0,104720.0,0.78556146]
[1750200774157,4.743e-05,104730.0,104720.0,0.89625153]
[1750200774374,0.00959506,104730.0,104720.0,0.89625153]
[1750200774590,4.743e-05,104730.0,104720.0,0.89625153]
[1750200774813,0.00959506,104730.0,104720.0,0.89625153]
[1750200775065,4.743e-05,104730.0,104720.0,0.89625153]
[1750200775283,0.27630145,104740.0,104730.0,0.27296332]
[1750200775513,0.27630145,104740.0,104730.0,0.29834471]
[1750200775514,0.05289292,104740.0,104730.0,0.29834471]
[1750200777640,0.05256285,104740.0,104730.0,0.29834471]
[1750200778087,0.2368739,104750.0,104740.0,0.28059053]
[1750200778299,0.24253789,104760.0,104740.0,0.47783053]
[1750200778560,0.00954653,104750.0,104740.0,0.48737734]
[1750200778820,0.20047731,104750.0,104740.0,0.55774994]
[1750200779558,0.0431018,104750.0,104740.0,0.55774994]
[1750200779804,0.06219377,104750.0,104740.0,0.55774994]
[1750200780243,0.06319377,104750.0,104740.0,0.55774994]
[1750200780555,0.07274012,104750.0,104740.0,0.48737734]
[1750200780770,0.07474012,104750.0,104740.0,0.48737734]
[1750200780988,0.26567163,104750.0,104740.0,0.48737734]
[1750200781205,0.07474085,104750.0,104740.0,0.48737734]
[1750200781482,0.06519441,104750.0,104740.0,0.77847734]
[1750200781683,0.05564806,104750.0,104740.0,0.77847734]
[1750200781905,0.06519441,104750.0,104740.0,0.77847734]
[1750200782551,0.07474085,104750.0,104740.0,0.77847734]
[1750200782769,0.26567163,104750.0,104740.0,0.77847734]
[1750200783209,0.07474085,104750.0,104740.0,0.77847734]
[1750200783640,0.06519441,104750.0,104740.0,0.77847734]
[1750200785344,0.26567217,104750.0,104740.0,0.77847734]
[1750200785556,0.256126,104750.0,104740.0,0.76893062]
[1750200785785,0.23703339,104750.0,104740.0,0.75938363]
[1750200785997,0.21794042,104750.0,104740.0,0.68883646]
[1750200786213,0.21794042,104750.0,104740.0,0.2911]
[1750200786435,0.33207532,104750.0,104740.0,0.33182]
[1750200786648,0.36237532,104750.0,104740.0,0.2911]
[1750200786859,0.38528502,104750.0,104740.0,0.2911]
[1750200787082,0.38528502,104750.0,104740.0,0.33182]
[1750200787286,0.38528502,104750.0,104740.0,0.04072]
[1750200788388,0.39101245,104750.0,104740.0,0.04072]
[1750200788800,0.41392215,104750.0,104740.0,0.04072]
[1750200789473,0.38362215,104750.0,104740.0,0.04072]
[1750200789708,0.35498502,104750.0,104740.0,0.23166901]
[1750200789921,0.33207532,104750.0,104740.0,0.19094901]
[1750200790134,0.33207559,104750.0,104740.0,0.23166901]
[1750200790571,0.21777129,104750.0,104740.0,0.24121646]
[1750200791233,0.24247852,104750.0,104740.0,0.04072]
[1750200791936,0.24247852,104750.0,104740.0,0.23166901]
[1750200792956,0.24247852,104750.0,104740.0,0.24121646]
[1750200793716,0.24247852,104750.0,104740.0,0.25076381]
[1750200794391,0.23353142,104750.0,104740.0,0.25076381]
[1750200794597,0.24247904,104750.0,104740.0,0.24121646]
[1750200795120,0.22458502,104750.0,104740.0,0.25076381]
[1750200795384,0.22458502,104750.0,104740.0,0.33445824]
[1750200795848,0.24247946,104750.0,104740.0,0.32491107]
[1750200798070,0.24247946,104750.0,104740.0,0.33445824]
[1750200798933,0.24247946,104750.0,104740.0,0.32491107]
[1750200799181,0.23369627,104740.0,104730.0,0.00047515]
[1750200799353,0.36349068,104740.0,104730.0,0.00047515]
[1750200799579,0.38183751,104740.0,104730.0,0.00047515]
[1750200800483,0.82541612,104740.0,104730.0,0.00147515]
[1750200800808,1.23196473,104740.0,104730.0,0.00147515]
[1750200800897,1.19378189,104740.0,104730.0,0.00247515]
[1750200802018,1.19378189,104740.0,104730.0,0.00147515]
[1750200802227,1.17087219,104740.0,104730.0,0.00147515]
[1750200802458,1.19672634,104740.0,104730.0,0.00047515]
[1750200803571,1.12247414,104740.0,104730.0,0.00047515]
[1750200803850,1.1135386,104740.0,104730.0,0.00047515]
[1750200804111,1.1224673,104740.0,104730.0,0.00047515]
[1750200804656,1.09958263,104740.0,104730.0,0.00047515]
[1750200805277,1.0422934,104740.0,104730.0,0.00047515]
[1750200805949,0.91933912,104740.0,104730.0,0.00047515]
[1750200807824,1.03744211,104740.0,104730.0,0.00047515]
[1750200808038,1.01458347,104740.0,104730.0,0.00047515]
[1750200808670,1.0374409,104740.0,104730.0,0.00047515]
[1750200809098,1.02851242,104740.0,104730.0,0.00047515]
[1750200809317,1.12466164,104740.0,104730.0,0.00047515]
[1750200810845,1.12465299,104740.0,104730.0,0.00047515]
[1750200811728,1.06750638,104740.0,104730.0,0.00047515]
[1750200811938,0.98027329,104740.0,104730.0,0.00047515]
[1750200812150,1.00882108,104740.0,104730.0,0.00047515]
[1750200812390,1.16530108,104740.0,104730.0,0.00047515]
[1750200812829,1.16527776,104740.0,104730.0,0.00047515]
[1750200813048,1.13307776,104740.0,104730.0,0.00047515]
[1750200813707,1.53303894,104740.0,104730.0,0.00047515]
[1750200814346,1.58989,104740.0,104730.0,0.00047515]
[1750200815479,1.43341,104740.0,104730.0,0.00047515]
[1750200815688,1.58989,104740.0,104730.0,0.00047515]
[1750200817008,1.57205717,104740.0,104730.0,0.00047515]
[1750200819353,1.57205964,104740.0,104730.0,0.00047515]
[1750200822652,1.62920625,104740.0,104730.0,0.00047515]
[1750200823759,1.62920713,104740.0,104730.0,0.00047515]
[1750200825683,1.59110939,104740.0,104730.0,0.00047515]
[1750200828599,6.58396278,104740.0,104730.0,0.00047515]
[1750200829584,6.42748278,104740.0,104730.0,0.00047515]
[1750200829793,6.63871003,104740.0,104730.0,0.00047515]
[1750200832966,1.60261456,104720.0,104710.0,0.06344743]
[1750200833394,1.50646406,104720.0,104710.0,0.06444743]
[1750200833615,1.44922221,104720.0,104710.0,0.06444743]
[1750200833872,1.44922221,104720.0,104710.0,0.06344743]
[1750200834093,1.50646406,104720.0,104710.0,0.06244743]
[1750200834309,1.60261328,104720.0,104710.0,0.06244743]
[1750200834554,1.60361328,104720.0,104710.0,0.06244743]
[1750200834771,1.54637143,104720.0,104710.0,0.06244743]
[1750200836313,1.53966399,104720.0,104710.0,0.06244743]
[1750200836532,1.54636615,104720.0,104710.0,0.06244743]
[1750200836760,1.45021693,104720.0,104710.0,0.06244743]
[1750200837461,1.30017693,104720.0,104710.0,0.06244743]
[1750200841279,1.35741878,104720.0,104710.0,0.06244743]
[1750200841692,1.30017693,104720.0,104710.0,0.06244743]
[1750200842318,1.29347477,104720.0,104710.0,0.06244743]
[1750200842524,1.30017743,104720.0,104710.0,0.06244743]
[1750200843348,1.33651084,104720.0,104710.0,0.06244743]
[1750200844423,1.30017743,104720.0,104710.0,0.06244743]
[1750200845085,1.30017753,104720.0,104710.0,0.06244743]
[1750200846435,1.14373753,104720.0,104710.0,0.06244743]
[1750200846657,1.15006526,104720.0,104710.0,0.06244743]
[1750200846880,1.10520127,104720.0,104710.0,0.06244743]
[1750200847100,0.95546471,104720.0,104710.0,0.25345115]
[1750200847362,1.11190471,104720.0,104710.0,0.26300133]
[1750200847575,1.10520127,104720.0,104710.0,0.26300133]
[1750200847784,1.11190512,104720.0,104710.0,0.06244743]
[1750200847996,1.10520127,104720.0,104710.0,0.06244743]
[1750200848426,1.11190499,104720.0,104710.0,0.06244743]
[1750200849049,0.95546499,104720.0,104710.0,0.06244743]
[1750200849258,1.10520127,104720.0,104710.0,0.06244743]
[1750200849889,1.04491049,104720.0,104710.0,0.06244743]
[1750200850102,1.20135049,104720.0,104710.0,0.06244743]
[1750200850310,1.20805382,104720.0,104710.0,0.06244743]
[1750200851388,0.86805382,104720.0,104710.0,0.06244743]
[1750200852503,1.1119046,104720.0,104710.0,0.06244743]
[1750200854151,1.11190325,104720.0,104710.0,0.06244743]
[1750200854887,0.77190325,104720.0,104710.0,0.06244743]
[1750200855739,0.76520127,104720.0,104710.0,0.06244743]
[1750200855943,1.11190347,104720.0,104710.0,0.06244743]
[1750200856151,1.10520127,104720.0,104710.0,0.06244743]
[1750200856617,1.20805309,104720.0,104710.0,0.06244743]
[1750200856831,1.20135049,104720.0,104710.0,0.06244743]
[1750200857506,1.20805322,104720.0,104710.0,0.06244743]
[1750200858204,1.20135049,104720.0,104710.0,0.06244743]
[1750200858442,1.20805343,104720.0,104710.0,0.06244743]
[1750200858723,1.10520127,104720.0,104710.0,0.06244743]
[1750200859579,1.11190421,104720.0,104710.0,0.06244743]
[1750200860461,1.06046808,104720.0,104710.0,0.06244743]
[1750200860885,1.06046845,104720.0,104710.0,0.06244743]
[1750200861550,1.15661767,104720.0,104710.0,0.06244743]
[1750200861836,1.14991436,104720.0,104710.0,0.06244743]
[1750200862030,1.15661721,104720.0,104710.0,0.06244743]
[1750200862239,1.20809651,104720.0,104710.0,0.06244743]
[1750200862908,1.11194729,104720.0,104710.0,0.06244743]
[1750200864759,1.15008011,104720.0,104710.0,0.06244743]
[1750200867531,1.17879191,104720.0,104710.0,0.06244743]
[1750200868365,1.1501923,104720.0,104710.0,0.06244743]
[1750200868789,1.15019641,104720.0,104710.0,0.06244743]
[1750200869014,1.24634563,104720.0,104710.0,0.06244743]
[1750200870539,1.24634622,104720.0,104710.0,0.06244743]
[1750200870747,1.24634622,104720.0,104710.0,4.743e-05]
[1750200870958,1.39634622,104720.0,104710.0,4.743e-05]
[1750200872289,1.300197,104720.0,104710.0,0.06434743]
[1750200872528,1.29067318,104720.0,104710.0,0.06434743]
[1750200874818,1.29067318,104720.0,104710.0,4.743e-05]
[1750200875510,1.328806,104720.0,104710.0,4.743e-05]
[1750200875948,1.332397,104720.0,104710.0,4.743e-05]
[1750200876167,1.42854815,104720.0,104710.0,4.743e-05]
[1750200877493,1.46044815,104720.0,104710.0,4.743e-05]
[1750200877708,1.04055372,104710.0,104700.0,0.52065207]
[1750200877927,1.38947291,104710.0,104700.0,0.52074287]
[1750200878136,1.45702465,104710.0,104700.0,0.52074287]
[1750200878346,1.48562233,104710.0,104700.0,0.52074287]
[1750200878765,1.44749235,104710.0,104700.0,0.52074287]
[1750200879464,1.41627817,104710.0,104700.0,0.52074287]
[1750200879675,1.35134313,104710.0,104700.0,0.52074287]
[1750200879889,1.35234313,104710.0,104700.0,0.52074287]
[1750200880109,1.35534313,104710.0,104700.0,0.52074287]
[1750200882371,1.42207466,104710.0,104700.0,0.52074287]
[1750200882610,1.51822388,104710.0,104700.0,0.52074287]
[1750200882857,1.55072388,104710.0,104700.0,0.52074287]
[1750200883987,1.5125939,104710.0,104700.0,0.52074287]
[1750200884466,1.51258092,104710.0,104700.0,0.52074287]
[1750200884900,1.55065709,104710.0,104700.0,0.52074287]
[1750200885334,1.51258092,104710.0,104700.0,0.52074287]
[1750200885536,1.55065113,104710.0,104700.0,0.52074287]
[1750200886391,6.60065113,104710.0,104700.0,0.52074287]
[1750200886818,6.63095113,104710.0,104700.0,0.52074287]
[1750200887239,6.63094793,104710.0,104700.0,0.52074287]
[1750200887666,6.59287772,104710.0,104700.0,0.52074287]
[1750200888317,6.56257772,104710.0,104700.0,0.52074287]
[1750200888562,6.4339285,104710.0,104700.0,0.52074287]
[1750200889290,6.4339285,104710.0,104700.0,0.58254287]
[1750200889507,6.4339285,104710.0,104700.0,0.52074287]
[1750200889945,5.9775685,104710.0,104700.0,0.58574287]
[1750200890209,1.51562738,104710.0,104700.0,0.58574287]
[1750200890416,0.84697353,104710.0,104700.0,0.58574287]
[1750200890694,1.14222466,104710.0,104700.0,0.58574287]
[1750200890892,1.29922466,104710.0,104700.0,0.58574287]
[1750200891982,1.14222466,104710.0,104700.0,0.58574287]
[1750200892203,1.29922466,104710.0,104700.0,0.58574287]
[1750200892641,1.07067928,104710.0,104700.0,0.58574287]
[1750200893282,1.1668285,104710.0,104700.0,0.58574287]
[1750200893423,1.17352059,104710.0,104700.0,0.58574287]
[1750200894643,1.15063679,104710.0,104700.0,0.58574287]
[1750200895505,1.17348028,104710.0,104700.0,0.58574287]
[1750200895952,1.20203464,104710.0,104700.0,0.58574287]
[1750200896346,1.10588542,104710.0,104700.0,0.58574287]
[1750200897179,1.10576542,104710.0,104700.0,0.58574287]
[1750200897440,1.07721106,104710.0,104700.0,0.58574287]
[1750200897662,1.10576542,104710.0,104700.0,0.58574287]
[1750200898131,1.07721106,104710.0,104700.0,0.58574287]
[1750200898367,1.10576542,104710.0,104700.0,0.58574287]
[1750200899019,1.13447842,104710.0,104700.0,0.58574287]
[1750200899447,1.15391463,104710.0,104700.0,0.58574287]
[1750200901221,1.12778633,104710.0,104700.0,0.58574287]
[1750200901428,1.13448266,104710.0,104700.0,0.58574287]
[1750200902268,1.12778633,104710.0,104700.0,0.58574287]
[1750200902479,1.13448268,104710.0,104700.0,0.58574287]
[1750200902689,1.17255516,104710.0,104700.0,0.58574287]
[1750200902902,1.26870438,104710.0,104700.0,0.58574287]
[1750200903408,1.17255516,104710.0,104700.0,0.58574287]
[1750200903835,1.16585881,104710.0,104700.0,0.58574287]
[1750200904094,1.17255688,104710.0,104700.0,0.58574287]
[1750200904327,1.14400252,104710.0,104700.0,0.58574287]
[1750200906928,1.14400484,104710.0,104700.0,0.58574287]
[1750200909661,1.1440055,104710.0,104700.0,0.58574287]
[1750200912498,1.14400551,104710.0,104700.0,0.58574287]
[1750200914702,0.98712551,104710.0,104700.0,0.58574287]
[1750200914926,1.14548551,104710.0,104700.0,0.58574287]
[1750200915358,1.14549112,104710.0,104700.0,0.58574287]
[1750200915577,1.14549111,104710.0,104700.0,0.58574287]
[1750200916696,1.14549233,104710.0,104700.0,0.58574287]
[1750200917568,1.13878445,104710.0,104700.0,0.58574287]
[1750200917795,0.98713215,104710.0,104700.0,0.58574287]
[1750200918053,1.14537215,104710.0,104700.0,0.58574287]
[1750200918501,1.23481367,104710.0,104700.0,0.58574287]
[1750200919209,1.24152473,104710.0,104700.0,0.58574287]
[1750200919647,1.24152469,104710.0,104700.0,0.58574287]
[1750200922818,1.14537547,104710.0,104700.0,0.58574287]
[1750200925195,1.13866445,104710.0,104700.0,0.58574287]
[1750200925421,1.14537547,104710.0,104700.0,0.58574287]
[1750200928078,1.14537716,104710.0,104700.0,0.58574287]
[1750200930966,1.1453785,104710.0,104700.0,0.58574287]
[1750200931626,1.1965222,104710.0,104700.0,0.58574287]
[1750200935435,1.19652543,104710.0,104700.0,0.58574287]
[1750200935868,1.10037621,104710.0,104700.0,0.58574287]
[1750200936520,1.10037659,104710.0,104700.0,0.58574287]
[1750200939524,1.10037739,104710.0,104700.0,0.58574287]
[1750200941479,1.16691178,104710.0,104700.0,0.58574287]
[1750200942796,1.00867178,104710.0,104700.0,0.58574287]
[1750200943063,1.16643178,104710.0,104700.0,0.58574287]
[1750200943511,1.21173245,104710.0,104700.0,0.58574287]
[1750200945007,1.21173245,104710.0,104700.0,0.55274287]
[1750200945230,1.21165245,104710.0,104700.0,0.55274287]
[1750200945448,1.21165245,104710.0,104700.0,0.58374287]
[1750200946558,1.16635178,104710.0,104700.0,0.58374287]
[1750200946773,1.15963332,104710.0,104700.0,0.58374287]
[1750200947005,1.1663516,104710.0,104700.0,0.58374287]
[1750200950834,1.3163526,104710.0,104700.0,0.58374287]
[1750200954543,1.31635363,104710.0,104700.0,0.58374287]
[1750200956421,1.41250285,104710.0,104700.0,0.58374287]
[1750200957486,1.19771412,104710.0,104700.0,0.58374287]
[1750200957692,1.31607363,104710.0,104700.0,0.58374287]
[1750200959572,1.31607363,104710.0,104700.0,0.55274287]
[1750200959783,1.31607401,104710.0,104700.0,0.55274287]
[1750200959995,1.31617171,104710.0,104700.0,0.55274287]
[1750200961149,1.41232093,104710.0,104700.0,0.55274287]
[1750200961554,1.41232093,104710.0,104700.0,0.52074287]
[1750200962022,1.37424845,104710.0,104700.0,0.52074287]
[1750200965128,1.37424839,104710.0,104700.0,0.52074287]
[1750200966035,1.41248347,104710.0,104700.0,0.52074287]
[1750200966264,1.37424824,104710.0,104700.0,0.52074287]
[1750200968322,1.58237437,104710.0,104700.0,0.4454443]
[1750200971146,1.58237311,104710.0,104700.0,0.4454443]
[1750200971575,1.55537376,104710.0,104700.0,0.4454443]
[1750200974453,1.55537046,104710.0,104700.0,0.4454443]
[1750200976775,1.33695032,104710.0,104700.0,0.4454443]
[1750200977700,1.2408011,104710.0,104700.0,0.4454443]
[1750200979296,1.23408518,104710.0,104700.0,0.4454443]
[1750200979727,1.2407971,104710.0,104700.0,0.4454443]
[1750200980013,6.64445775,104710.0,104700.0,0.43588]
[1750200980251,6.64445775,104710.0,104700.0,0.4263157]
[1750200980252,6.65116949,104710.0,104700.0,0.4263157]
[1750200980476,6.64445775,104710.0,104700.0,0.4263157]
[1750200980697,6.74731857,104710.0,104700.0,0.4167514]
[1750200981139,6.7473187,104710.0,104700.0,0.4071871]
[1750200981363,6.7513187,104710.0,104700.0,0.4071871]
[1750200981586,6.75131857,104710.0,104700.0,0.3976228]
[1750200981815,6.75131857,104710.0,104700.0,0.3880585]
[1750200982034,6.59391857,104710.0,104700.0,0.3880585]
[1750200982250,6.7324151,104710.0,104700.0,0.3306727]
[1750200982715,6.7324151,104710.0,104700.0,0.3211084]
[1750200982944,6.77470139,104710.0,104700.0,0.2732869]
[1750200983188,6.84364486,104710.0,104700.0,0.11037261]
[1750200983403,6.7865339,104710.0,104700.0,0.05298681]
[1750200983643,6.84872988,104710.0,104700.0,0.0478215]
[1750200983860,0.85016366,104680.0,104670.0,0.10328]
[1750200984089,1.25820581,104680.0,104670.0,0.10328]
[1750200985063,1.25820581,104680.0,104670.0,0.10628]
[1750200985285,1.28692781,104680.0,104670.0,0.10628]
[1750200985508,1.28692781,104680.0,104670.0,0.10728]
[1750200985727,1.29207055,104680.0,104670.0,0.066]
[1750200990058,1.19592133,104680.0,104670.0,0.066]
[1750200990514,1.19590815,104680.0,104670.0,0.066]
[1750200990730,1.19590813,104680.0,104670.0,0.066]
[1750200991638,1.18921446,104680.0,104670.0,0.066]
[1750200992250,1.189118,104680.0,104670.0,0.066]
[1750200992498,1.28526722,104680.0,104670.0,0.066]
[1750200993432,1.31382314,104680.0,104670.0,0.066]
[1750200995501,0.76027392,104680.0,104670.0,0.066]
[1750200995716,1.06787392,104680.0,104670.0,0.066]
[1750200995899,1.01975285,104680.0,104670.0,0.066]
[1750200997054,0.89482909,104680.0,104670.0,0.25707671]
[1750200997263,0.88527663,104680.0,104670.0,0.066]
[1750200997698,0.88527663,104680.0,104670.0,0.26663054]
[1750200998781,0.88527663,104680.0,104670.0,0.27618428]
[1750200998998,0.88527663,104680.0,104670.0,0.28573793]
[1750200998999,0.27630716,104680.0,104670.0,0.28573793]
[1750200999218,0.25346243,104680.0,104670.0,0.28573793]
[1750200999443,0.2939378,104680.0,104670.0,0.066]
[1750201000101,0.24390997,104680.0,104670.0,0.066]
[1750201000973,0.58390997,104680.0,104670.0,0.066]
[1750201001156,0.6067547,104680.0,104670.0,0.066]
[1750201001618,0.6067547,104680.0,104670.0,0.26663054]
[1750201001863,0.6067547,104680.0,104670.0,0.27618419]
[1750201002061,0.6067547,104680.0,104670.0,0.28573775]
[1750201002330,0.61630706,104680.0,104670.0,0.29529112]
[1750201002555,0.27630706,104680.0,104670.0,0.29529112]
[1750201002774,0.59346233,104680.0,104670.0,0.3048444]
[1750201003641,0.36865784,104680.0,104670.0,0.30484376]
[1750201003857,0.56926913,104680.0,104670.0,0.30484376]
[1750201004076,0.57882205,104680.0,104670.0,0.30484376]
[1750201005176,0.35910465,104680.0,104670.0,0.30484376]
[1750201005392,0.02865739,104680.0,104670.0,0.37433354]
[1750201005645,0.02865729,104680.0,104670.0,0.37433354]
[1750201005875,0.01910465,104680.0,104670.0,0.30484376]
[1750201006103,0.02865729,104680.0,104670.0,0.30484376]
[1750201006318,0.03821003,104680.0,104670.0,0.30484376]
[1750201006543,0.23882132,104680.0,104670.0,0.30484376]
[1750201006762,0.04776286,104680.0,104670.0,0.30484376]
[1750201007465,0.23882132,104680.0,104670.0,0.30484376]
[1750201008130,0.04776286,104680.0,104670.0,0.30484376]
[1750201009019,0.02865729,104680.0,104670.0,0.30484376]
[1750201009241,0.01910456,104680.0,104670.0,0.30484376]
[1750201009905,0.0286572,104680.0,104670.0,0.30484376]
[1750201010120,0.01910456,104680.0,104670.0,0.30484376]
[1750201010352,0.02865711,104680.0,104670.0,0.30484376]
[1750201011990,0.01910456,104680.0,104670.0,0.59594376]
[1750201012864,0.02865711,104680.0,104670.0,0.59594376]
[1750201013316,0.03820975,104680.0,104670.0,0.59594376]
[1750201013975,0.02865711,104680.0,104670.0,0.59594376]
[1750201014412,0.03820985,104680.0,104670.0,0.59594376]
[1750201014641,0.03820975,104680.0,104670.0,0.59594376]
[1750201015523,0.02865711,104680.0,104670.0,0.59594376]
[1750201015773,0.03820975,104680.0,104670.0,0.59594376]
[1750201015993,0.23882159,104680.0,104670.0,0.59594376]
[1750201016211,0.04776313,104680.0,104670.0,0.59594376]
[1750201016458,0.78615799,104680.0,104670.0,0.004]
[1750201016685,0.78615799,104680.0,104650.0,0.10552]
[1750201016686,0.55020382,104660.0,104650.0,0.10552]
[1750201016910,0.81931374,104660.0,104650.0,0.0642]
[1750201017133,0.81931374,104660.0,104650.0,0.0322]
[1750201017134,1.04252326,104660.0,104650.0,0.0322]
[1750201017351,1.14536909,104660.0,104650.0,0.0322]
[1750201017599,1.04922001,104660.0,104650.0,0.0322]
[1750201017831,0.54068788,104640.0,104630.0,0.10999779]
[1750201018057,0.54068788,104640.0,104630.0,0.00616863]
[1750201018058,0.87151604,104640.0,104630.0,0.00616863]
[1750201018775,1.1177578,104640.0,104630.0,0.00616863]
[1750201019000,1.39237652,104640.0,104630.0,0.00616863]
[1750201019437,1.64292138,104640.0,104630.0,0.00616863]
[1750201019676,1.6617082,104640.0,104630.0,0.00616863]
[1750201019915,1.71096185,104640.0,104630.0,0.00616863]
[1750201020377,1.71196185,104640.0,104630.0,0.00616863]
[1750201020643,1.74044494,104640.0,104630.0,0.00616863]
[1750201020920,1.73944494,104640.0,104630.0,0.00616863]
[1750201021171,1.74244494,104640.0,104630.0,0.00616863]
[1750201021408,1.70430745,104640.0,104630.0,0.00616863]
[1750201021641,6.63081368,104640.0,104630.0,0.00616863]
[1750201021864,0.21032439,104600.0,104590.0,0.10522]
[1750201022088,0.36856439,104600.0,104590.0,0.064376]
[1750201022553,0.53641745,104600.0,104590.0,0.064376]
[1750201023252,0.53641745,104600.0,104590.0,0.000476]
[1750201023732,1.18385524,104600.0,104590.0,0.000476]
[1750201023963,1.20657139,104600.0,104590.0,0.005476]
[1750201024192,1.60657139,104600.0,104590.0,0.011476]
[1750201024424,1.60657139,104600.0,104590.0,0.000476]
[1750201024876,1.63884311,104600.0,104590.0,0.000476]
[1750201025350,0.70036462,104580.0,104570.0,0.063256]
[1750201025586,0.85900462,104580.0,104570.0,0.06334683]
[1750201025814,1.01125987,104580.0,104570.0,0.06334683]
[1750201026107,1.01125987,104580.0,104570.0,9.083e-05]
[1750201026108,1.31296227,104580.0,104570.0,9.083e-05]
[1750201026350,1.7735222,104580.0,104570.0,9.083e-05]
[1750201026589,1.7735222,104580.0,104570.0,0.00209083]
[1750201027270,1.6148822,104580.0,104570.0,9.083e-05]
[1750201027499,0.53131432,104540.0,104530.0,0.517918]
[1750201027732,0.69039432,104540.0,104530.0,0.54916002]
[1750201028209,0.94907293,104540.0,104530.0,0.54916002]